bitfinex-derivatives/quotes_ETHF0:USTF0_20210407
["timestamp","ask_amount","ask_price","bid_price","bid_amount"]
[1617825741788,74.2982,1986.4,1984.7,6.3]
[1617825741986,74.2982,1986.4,1984.7,36.3]
[1617825742186,74.2982,1986.4,1984.7,6.3]
[1617825743087,74.2982,1986.4,1985.5,2.90695]
[1617825743486,74.2982,1986.4,1985.6,6.34]
[1617825743987,74.2982,1986.4,1984.7,6.1]
[1617825744187,30.0,1986.4,1984.7,6.1]
[1617825744390,58.071,1985.4,1984.7,6.1]
[1617825744688,61.1609,1985.4,1984.3,6.33]
[1617825744888,61.1609,1985.4,1984.8,6.05]
[1617825745290,61.1609,1985.4,1984.6,6.21]
[1617825745692,61.1609,1985.4,1984.9,6.04]
[1617825745992,61.1609,1985.4,1984.6,6.33]
[1617825746289,61.1609,1985.4,1985.0,6.34]
[1617825746490,61.1609,1985.4,1984.6,6.06]
[1617825746690,58.071,1985.4,1984.6,6.06]
[1617825746992,2.90695,1984.7,1984.6,6.06]
[1617825747589,2.90695,1984.7,1983.3,2.0]
[1617825747789,2.90695,1984.7,1982.7,30.0]
[1617825747790,57.4259,1984.6,1982.8,30.0]
[1617825748193,57.4259,1984.6,1982.7,60.9714]
[1617825748392,57.4259,1984.6,1982.9,6.22]
[1617825748691,57.4259,1984.6,1983.0,2.0]
[1617825748892,57.4259,1984.6,1984.1,2.90695]
[1617825749092,57.4259,1984.6,1983.6,3.0394]
[1617825749792,57.4259,1984.6,1983.7,6.23]
[1617825750395,57.4259,1984.6,1983.2,6.3]
[1617825750594,59.4627,1984.6,1983.8,6.05]
[1617825750995,2.90695,1983.9,1983.6,2.90695]
[1617825751496,2.90695,1983.9,1983.7,0.76]
[1617825752997,2.90695,1983.9,1983.8,2.90695]
[1617825753298,2.90695,1983.9,1983.8,9.21695]
[1617825753497,2.90695,1983.9,1983.8,6.31]
[1617825753998,2.90695,1983.9,1983.0,6.33]
[1617825754198,2.90695,1983.9,1983.8,6.15]
[1617825754598,2.90695,1983.9,1983.0,6.05]
[1617825754798,2.90695,1983.9,1983.8,6.3]
[1617825755003,2.90695,1983.9,1983.8,9.20695]
[1617825755202,2.90695,1983.9,1983.8,2.90695]
[1617825755499,2.90695,1983.9,1983.8,9.00695]
[1617825756202,2.90695,1983.9,1983.8,6.1]
[1617825756502,2.90695,1983.9,1983.4,6.19]
[1617825756903,57.4259,1984.6,1983.8,6.06]
[1617825757203,57.4259,1984.6,1983.7,2.90695]
[1617825757506,57.4259,1984.6,1983.8,6.05]
[1617825758905,2.90695,1983.9,1983.8,6.05]
[1617825762412,5.08835,1983.9,1983.8,6.05]
[1617825762912,5.08835,1983.9,1983.2,2.90695]
[1617825763113,108.619,1983.8,1981.7,65.8399]
[1617825763314,108.619,1983.8,1981.7,64.8178]
[1617825763918,108.619,1983.8,1981.8,6.15]
[1617825763919,2.0,1983.7,1981.8,6.15]
[1617825764117,30.0,1983.6,1981.8,6.15]
[1617825764916,30.0,1983.6,1982.4,2.90695]
[1617825765116,2.0,1983.5,1981.8,6.15]
[1617825765317,30.0,1983.4,1981.8,6.15]
[1617825765516,75.3119,1982.7,1981.8,6.15]
[1617825765718,78.3388,1982.7,1981.8,6.15]
[1617825766818,71.356,1983.6,1981.8,121.559]
[1617825767622,71.356,1983.6,1981.9,2.0]
[1617825767821,71.356,1983.6,1982.0,32.0]
[1617825768822,71.356,1983.6,1981.8,91.559]
[1617825769023,71.356,1983.6,1983.1,2.90695]
[1617825770823,101.356,1983.6,1983.1,2.90695]
[1617825771124,2.90695,1983.2,1983.1,2.90695]
[1617825773924,2.0,1984.2,1983.1,2.90695]
[1617825774129,70.8255,1984.4,1983.1,11.93735]
[1617825774923,58.0094,1984.4,1983.1,11.93735]
[1617825775123,58.0094,1984.4,1984.1,2.90695]
[1617825775326,58.0094,1984.4,1984.1,4.97005]
[1617825775524,58.0094,1984.4,1984.2,6.2]
[1617825776025,2.0,1985.4,1984.2,6.2]
[1617825776224,63.5077,1985.2,1984.2,6.2]
[1617825777127,63.5077,1985.2,1984.3,2.90695]
[1617825777528,63.5077,1985.2,1984.4,6.29]
[1617825779128,2.90695,1984.5,1984.4,6.29]
[1617825780532,2.90695,1984.5,1983.7,75.2843]
[1617825781028,63.5077,1985.2,1984.3,2.90695]
[1617825781231,63.5077,1985.2,1984.3,5.59985]
[1617825781431,93.5077,1985.2,1984.3,5.59985]
[1617825782832,95.5077,1985.2,1984.3,5.59985]
[1617825783035,2.90695,1984.4,1984.3,5.59985]
[1617825783332,2.90695,1984.4,1983.7,75.2843]
[1617825784136,2.90695,1984.4,1983.8,6.22]
[1617825784333,62.7761,1984.3,1982.6,57.3758]
[1617825784936,62.7761,1984.3,1982.6,59.3758]
[1617825785134,92.7761,1984.3,1983.4,2.90695]
[1617825785538,94.7761,1984.3,1983.4,2.90695]
[1617825785835,94.7761,1984.3,1982.6,57.3758]
[1617825786534,94.7761,1984.3,1982.7,6.33]
[1617825787135,94.7761,1984.3,1983.1,2.90695]
[1617825787435,94.7761,1984.3,1983.2,6.24]
[1617825788042,94.7761,1984.3,1983.1,2.90695]
[1617825788336,94.7761,1984.3,1982.8,1.0019]
[1617825788536,32.0,1984.3,1981.8,2.0]
[1617825788736,83.6355,1983.5,1981.3,66.3066]
[1617825788937,115.5084,1983.5,1981.3,68.3066]
[1617825789136,115.5084,1983.5,1982.4,2.90695]
[1617825789338,115.5084,1983.5,1981.4,6.19]
[1617825789543,2.0,1983.4,1981.4,6.19]
[1617825789742,32.0,1983.3,1981.4,6.19]
[1617825790842,2.0,1983.3,1981.4,6.19]
[1617825791143,2.0,1983.3,1982.5,2.90695]
[1617825791341,85.5084,1983.5,1981.4,36.19]
[1617825791542,85.5084,1983.5,1982.6,6.23]
[1617825791944,85.5084,1983.5,1981.7,2.1991]
[1617825792143,85.5084,1983.5,1982.7,6.26]
[1617825792544,85.5084,1983.5,1981.7,2.1991]
[1617825792844,85.5084,1983.5,1981.4,30.0]
[1617825793044,87.5084,1983.5,1981.4,30.0]
[1617825793245,87.5084,1983.5,1982.5,2.90695]
[1617825793544,85.5084,1983.5,1982.6,6.32]
[1617825793844,117.5084,1983.5,1982.6,6.32]
[1617825794045,115.5084,1983.5,1982.5,2.90695]
[1617825794244,115.5084,1983.5,1981.3,66.3066]
[1617825794451,61.9921,1982.4,1981.3,1.0061]
[1617825794746,64.495,1982.4,1981.3,1.0061]
[1617825794946,64.495,1982.4,1981.4,6.23]
[1617825795347,64.495,1982.4,1982.3,2.90695]
[1617825795760,2.5029,1982.4,1982.3,9.15695]
[1617825796053,80.2325,1982.6,1982.3,11.95855]
[1617825796246,13.7396,1983.5,1982.3,11.95855]
[1617825796659,80.1758,1983.8,1982.3,41.95855]
[1617825797148,80.1758,1983.8,1982.4,2.0]
[1617825797348,80.1758,1983.8,1982.4,32.0]
[1617825797552,80.1758,1983.8,1982.5,6.15]
[1617825799253,80.1758,1983.8,1983.6,2.90695]
[1617825799454,80.1758,1983.8,1983.6,5.59545]
[1617825801256,2.90695,1983.7,1983.6,5.59545]
[1617825801959,62.3916,1984.5,1983.6,5.59545]
[1617825802262,62.3916,1984.5,1983.6,11.69545]
[1617825803461,65.29855,1984.5,1984.4,2.90695]
[1617825803659,65.29855,1984.5,1984.4,4.81075]
[1617825803858,65.29855,1984.5,1984.4,1.9038]
[1617825804261,95.29855,1984.5,1984.4,1.9038]
[1617825804863,95.29855,1984.5,1983.2,56.6026]
[1617825804864,67.96365,1984.5,1983.2,56.6026]
[1617825805463,65.0567,1984.5,1983.5,2.90695]
[1617825805966,97.0567,1984.5,1983.2,56.6026]
[1617825806663,97.0567,1984.5,1983.3,6.17]
[1617825807264,97.0567,1984.5,1983.2,56.6026]
[1617825807465,2.90695,1983.3,1983.2,56.6026]
[1617825807765,2.90695,1983.3,1983.1,2.90695]
[1617825809166,81.5166,1983.5,1983.1,2.90695]
[1617825809365,81.5166,1983.5,1983.2,6.17]
[1617825809566,2.90695,1983.3,1983.2,6.17]
[1617825810068,81.5166,1983.5,1983.2,6.17]
[1617825810366,2.0,1984.5,1983.2,8.6997]
[1617825810566,68.0162,1984.4,1983.2,8.6997]
[1617825811567,68.0162,1984.4,1984.0,5.76515]
[1617825812567,68.0162,1984.4,1984.1,6.2]
[1617825813673,68.0162,1984.4,1984.3,2.90695]
[1617825814868,2.90695,1984.6,1984.3,9.01695]
[1617825815567,2.90695,1984.6,1984.5,2.90695]
[1617825815767,2.90695,1984.6,1984.5,4.81165]
[1617825815967,2.90695,1984.6,1984.5,11.12165]
[1617825816568,2.90695,1984.6,1984.5,8.2147]
[1617825816769,2.90695,1984.6,1984.5,1.9047]
[1617825816969,2.90695,1984.6,1983.2,2.5297]
[1617825817170,2.90695,1984.6,1982.4,30.0]
[1617825817372,2.90695,1984.6,1982.4,32.0]
[1617825817570,2.2434,1985.0,1984.2,2.90695]
[1617825818170,0.7109117,1985.5,1983.2,2.8533]
[1617825818371,32.5071,1985.2,1983.2,2.8533]
[1617825818570,2.5071,1985.2,1983.2,2.8533]
[1617825818971,2.5071,1985.2,1983.3,6.31]
[1617825819471,2.5071,1985.2,1984.0,2.90695]
[1617825819674,32.7109117,1985.5,1984.0,2.90695]
[1617825819874,32.7109117,1985.5,1984.1,6.23]
[1617825820473,32.7109117,1985.5,1983.8,6.28]
[1617825821474,32.7109117,1985.5,1984.0,2.90695]
[1617825821676,0.71097005,1985.4,1984.0,2.90695]
[1617825821877,30.71097005,1985.4,1984.0,2.90695]
[1617825822082,30.0,1985.2,1984.0,2.90695]
[1617825822277,32.0,1985.1,1984.0,2.90695]
[1617825822479,2.0,1985.1,1984.0,2.90695]
[1617825822676,0.71134547,1985.3,1984.0,2.90695]
[1617825822876,2.71132004,1985.4,1984.1,6.28]
[1617825823380,2.0,1985.4,1984.1,6.28]
[1617825823581,30.0,1985.3,1984.2,2.90695]
[1617825823982,32.0,1985.3,1984.2,2.90695]
[1617825824182,32.0,1985.3,1984.0,2.8911]
[1617825824382,32.0,1985.3,1983.2,2.8533]
[1617825824583,32.0,1985.3,1982.8,30.0]
[1617825825086,32.0,1985.3,1982.9,6.24]
[1617825825287,32.0,1985.3,1982.9,9.1779]
[1617825825684,32.0,1985.3,1984.0,2.90695]
[1617825825884,32.0,1985.3,1984.1,6.16]
[1617825826084,0.71176077,1985.2,1984.1,6.16]
[1617825826284,0.71176077,1985.2,1984.0,2.4278]
[1617825826684,30.71176077,1985.2,1984.0,2.4278]
[1617825826884,32.0,1985.1,1984.0,2.4278]
[1617825827685,2.90695,1984.1,1984.0,2.4278]
[1617825828187,2.90695,1984.1,1983.7,2.90695]
[1617825828787,5.24285,1984.1,1983.7,2.90695]
[1617825829187,5.24285,1984.1,1982.4,30.0]
[1617825829387,5.24285,1984.1,1982.4,30.9953]
[1617825829587,2.3359,1984.1,1983.9,2.90695]
[1617825829788,2.3359,1984.1,1983.9,5.11545]
[1617825829987,14.01553149,1985.1,1983.9,5.11545]
[1617825830189,13.3037,1985.1,1984.0,6.23]
[1617825831590,13.3037,1985.1,1984.7,2.90695]
[1617825831788,13.3037,1985.1,1984.7,5.09995]
[1617825831988,0.71168457,1985.6,1984.7,5.09995]
[1617825832988,0.71168457,1985.6,1984.8,6.18]
[1617825833188,0.94891276,1985.8,1984.8,6.18]
[1617825833189,0.86266909,1985.8,1984.8,6.18]
[1617825833589,0.71263005,1985.6,1985.3,2.90695]
[1617825833788,0.71263005,1985.6,1985.3,5.97665]
[1617825833989,0.71263005,1985.6,1985.4,6.19]
[1617825834401,0.71252472,1985.9,1985.4,6.19]
[1617825834797,0.71239706,1986.2,1985.4,6.19]
[1617825834996,0.7123802,1986.3,1985.4,6.19]
[1617825835203,0.7123802,1986.3,1985.4,36.19]
[1617825835392,0.71236197,1986.4,1985.4,36.19]
[1617825835591,0.71236197,1986.4,1985.9,2.90695]
[1617825835795,0.71236197,1986.4,1985.9,4.87745]
[1617825835991,0.71236197,1986.4,1986.0,6.33]
[1617825836195,0.71236206,1986.3,1986.0,6.33]
[1617825837093,0.71240409,1986.2,1986.0,6.33]
[1617825837693,4.64713041,1986.8,1986.0,6.33]
[1617825837694,2.90695,1986.1,1986.0,6.33]
[1617825838193,2.90695,1986.1,1985.9,2.90695]
[1617825838793,2.90695,1986.1,1985.3,3.0697]
[1617825838994,2.90695,1986.1,1984.8,30.0]
[1617825839596,30.71081049,1986.8,1985.7,2.90695]
[1617825839995,30.71081049,1986.8,1984.9,6.23]
[1617825840196,32.89071049,1986.8,1984.1,30.0]
[1617825840399,34.89071049,1986.8,1984.1,30.0]
[1617825840602,0.71088641,1986.6,1984.1,30.0]
[1617825840799,0.71088641,1986.6,1984.3,30.0]
[1617825841000,0.71088641,1986.6,1984.3,32.6996]
[1617825841401,0.71088641,1986.6,1984.4,36.1]
[1617825841601,0.71088641,1986.6,1985.6,2.90695]
[1617825841801,0.71083828,1986.7,1985.6,2.90695]
[1617825842001,0.71083828,1986.7,1985.6,5.46675]
[1617825842203,0.7107764,1986.9,1985.7,6.19]
[1617825843001,0.71073822,1987.1,1985.7,6.19]
[1617825843403,0.71075394,1986.9,1985.7,6.19]
[1617825843603,0.71075394,1986.9,1985.9,2.90695]
[1617825843803,0.71073332,1987.0,1985.9,2.90695]
[1617825844203,0.71071783,1987.1,1986.0,6.29]
[1617825844403,0.71070155,1987.2,1986.0,9.139]
[1617825845505,82.5731,1986.9,1986.0,9.139]
[1617825845707,2.90695,1986.1,1986.0,9.139]
[1617825846103,82.5731,1986.9,1986.0,9.139]
[1617825847710,82.5731,1986.9,1986.4,2.90695]
[1617825847920,82.5731,1986.9,1986.4,5.87735]
[1617825848109,82.5731,1986.9,1986.5,6.09]
[1617825849009,82.5731,1986.9,1986.0,2.849]
[1617825849409,82.5731,1986.9,1985.6,2.5598]
[1617825849609,82.5731,1986.9,1985.5,77.877]
[1617825849810,82.5731,1986.9,1986.0,2.90695]
[1617825851509,112.5731,1986.9,1986.0,2.90695]
[1617825851711,114.5731,1986.9,1986.0,2.90695]
[1617825851911,2.90695,1986.1,1986.0,2.90695]
[1617825852111,2.90695,1986.1,1985.5,77.877]
[1617825852311,2.90695,1986.1,1984.8,2.0]
[1617825852510,60.06805,1986.1,1984.8,2.0]
[1617825852811,60.06805,1986.1,1984.9,6.21]
[1617825853612,60.06805,1986.1,1984.8,6.3]
[1617825853811,60.06805,1986.1,1985.0,6.34]
[1617825854011,57.1611,1986.1,1985.7,2.90695]
[1617825854412,57.1611,1986.1,1985.8,6.31]
[1617825854914,57.1611,1986.1,1984.7,81.5215]
[1617825855113,57.1611,1986.1,1983.9,2.0]
[1617825855114,32.4588,1986.1,1983.9,2.0]
[1617825855313,58.9633,1985.4,1983.9,30.0]
[1617825855512,61.5567,1985.4,1983.9,30.0]
[1617825855713,61.5567,1985.4,1983.9,36.07]
[1617825855912,61.5567,1985.4,1985.1,2.90695]
[1617825856113,2.5934,1985.4,1985.1,2.90695]
[1617825856312,2.5934,1985.4,1985.2,6.19]
[1617825857915,2.90695,1985.3,1985.2,6.19]
[1617825859514,5.73095,1985.3,1985.2,6.19]
[1617825860926,5.73095,1985.3,1985.1,2.90695]
[1617825861123,65.8387,1985.2,1983.7,69.375]
[1617825861540,30.0,1985.1,1980.8,13.7663]
[1617825861731,30.0,1985.1,1983.8,6.31]
[1617825861933,71.8692,1984.2,1983.9,2.90695]
[1617825862130,74.6055,1984.2,1983.9,2.90695]
[1617825862347,74.6055,1984.2,1983.9,6.32]
[1617825862525,74.6055,1984.2,1982.6,32.0]
[1617825863216,74.6055,1984.2,1982.7,6.08]
[1617825863418,74.6055,1984.2,1982.9,30.0]
[1617825863617,74.6055,1984.2,1982.9,36.08]
[1617825864017,74.6055,1984.2,1983.8,2.90695]
[1617825864217,2.7363,1984.2,1983.8,2.90695]
[1617825864416,2.7363,1984.2,1983.9,6.07]
[1617825865919,2.7363,1984.2,1984.0,2.90695]
[1617825866720,81.7787,1984.4,1984.0,2.90695]
[1617825866920,81.7787,1984.4,1984.1,6.23]
[1617825867521,30.0,1986.1,1984.1,6.23]
[1617825867721,76.6956,1985.7,1984.2,62.4519]
[1617825867920,76.6956,1985.7,1984.7,2.90695]
[1617825868123,76.6956,1985.7,1984.7,4.98375]
[1617825868321,76.6956,1985.7,1984.8,6.33]
[1617825870022,79.60255,1985.7,1985.4,2.90695]
[1617825870225,2.90695,1985.7,1985.4,5.52985]
[1617825870425,2.90695,1985.7,1985.5,6.29]
[1617825872026,2.90695,1985.7,1985.6,2.90695]
[1617825872628,2.90695,1985.7,1985.4,2.6229]
[1617825872828,2.90695,1985.7,1984.7,2.0768]
[1617825873027,76.9569,1985.6,1984.7,2.0768]
[1617825873229,76.9569,1985.6,1984.4,69.4451]
[1617825873728,76.9569,1985.6,1984.5,6.23]
[1617825873931,76.9569,1985.6,1985.3,2.90695]
[1617825874429,76.9569,1985.6,1985.4,6.23]
[1617825876129,2.90695,1985.5,1984.5,2.1047]
[1617825876330,2.90695,1985.5,1984.4,69.4451]
[1617825876732,2.90695,1985.5,1983.4,30.0]
[1617825876933,82.3967,1984.8,1984.5,6.31]
[1617825877131,85.1829,1984.8,1983.2,70.5063]
[1617825877332,2.7862,1984.8,1983.2,32.0]
[1617825877539,2.7862,1984.8,1984.2,74.127]
[1617825877733,2.90695,1985.5,1984.3,8.2]
[1617825878133,74.9495,1985.9,1985.0,2.90695]
[1617825878333,13.0609,1986.1,1985.0,2.90695]
[1617825878334,13.0609,1986.1,1985.0,4.78995]
[1617825878534,30.0,1986.3,1985.1,80.845]
[1617825879741,73.4218,1986.5,1985.1,80.845]
[1617825880136,73.4218,1986.5,1985.6,2.90695]
[1617825880337,73.4218,1986.5,1985.6,5.39735]
[1617825880536,73.4218,1986.5,1985.7,6.23]
[1617825882140,73.4218,1986.5,1985.8,2.90695]
[1617825882540,60.2973,1986.5,1985.9,6.08]
[1617825883242,60.2973,1986.5,1985.8,2.90695]
[1617825884142,2.90695,1985.9,1985.8,2.90695]
[1617825884350,0.71129932,1986.8,1985.8,2.90695]
[1617825884542,0.71129932,1986.8,1985.9,6.2]
[1617825884743,0.71117506,1987.0,1986.1,62.3592]
[1617825884944,13.8796444,1987.2,1986.2,6.11]
[1617825886143,13.8796444,1987.2,1986.7,2.90695]
[1617825886144,0.71113047,1987.1,1986.7,2.90695]
[1617825886343,0.71113047,1987.1,1986.7,5.19195]
[1617825886544,66.08061156,1987.4,1986.7,5.19195]
[1617825886845,66.08061156,1987.4,1986.7,2.285]
[1617825886846,0.71025239,1987.3,1986.7,2.285]
[1617825887446,0.71025239,1987.3,1986.1,65.437]
[1617825888246,0.71027466,1987.2,1986.2,2.90695]
[1617825888646,0.86166703,1987.2,1986.2,2.90695]
[1617825889147,0.86166703,1987.2,1986.1,65.437]
[1617825889148,0.86165453,1987.3,1986.1,65.437]
[1617825889348,0.71027064,1987.2,1986.1,65.437]
[1617825889747,0.86166906,1987.2,1986.1,65.437]
[1617825890148,0.86166835,1987.3,1986.2,2.90695]
[1617825890347,0.71028107,1987.2,1986.2,2.90695]
[1617825890548,0.71028107,1987.2,1986.2,9.24695]
[1617825890748,0.71026776,1987.3,1986.2,9.24695]
[1617825891550,0.71026776,1987.3,1986.2,2.90695]
[1617825892349,2.90695,1986.3,1986.2,2.90695]
[1617825892749,0.71026776,1987.3,1986.2,2.90695]
[1617825892949,0.71026776,1987.3,1986.2,8.94695]
[1617825893350,66.08063131,1987.4,1986.2,8.94695]
[1617825893750,65.3704,1987.4,1986.2,8.94695]
[1617825894351,65.3704,1987.4,1986.5,2.90695]
[1617825894553,65.3704,1987.4,1986.5,5.19865]
[1617825894751,65.3704,1987.4,1986.6,6.08]
[1617825894951,30.0,1987.3,1986.6,6.08]
[1617825895151,30.0,1987.3,1986.5,5.19865]
[1617825895352,2.0,1987.2,1986.5,5.19865]
[1617825895553,32.0,1987.2,1986.5,2.90695]
[1617825896454,2.90695,1986.6,1986.3,2.90695]
[1617825897255,2.90695,1986.6,1986.4,6.22]
[1617825897455,2.90695,1986.6,1986.4,8.7959]
[1617825898356,2.90695,1986.6,1986.5,2.90695]
[1617825898758,2.90695,1986.6,1986.5,9.01695]
[1617825900358,2.90695,1986.8,1986.5,9.01695]
[1617825900559,71.4134,1988.0,1986.6,98.7042]
[1617825900760,71.4134,1988.0,1986.8,30.0]
[1617825900961,71.4134,1988.0,1986.9,2.0]
[1617825901363,71.4134,1988.0,1987.0,6.27]
[1617825902465,71.4134,1988.0,1987.3,2.90695]
[1617825902664,71.4134,1988.0,1987.3,6.01645]
[1617825903065,71.4134,1988.0,1987.4,6.26]
[1617825904467,2.90695,1987.5,1987.4,6.26]
[1617825905872,2.90695,1987.5,1987.3,2.90695]
[1617825908371,2.90695,1987.5,1987.4,6.03]
[1617825908570,2.90695,1987.5,1987.4,8.5456]
[1617825909270,2.90695,1987.5,1987.4,2.5156]
[1617825909671,2.90695,1987.5,1986.8,83.6444]
[1617825910472,2.90695,1987.5,1986.9,6.03]
[1617825910674,78.3169,1987.7,1987.3,2.90695]
[1617825910874,13.6423,1988.2,1987.3,5.20155]
[1617825911074,13.6423,1988.2,1987.6,64.9959]
[1617825911474,30.0,1988.5,1987.6,64.9959]
[1617825912174,30.0,1988.6,1987.6,64.9959]
[1617825912375,30.0,1988.4,1987.6,64.9959]
[1617825912574,2.90695,1987.7,1987.6,64.9959]
[1617825912875,2.90695,1987.7,1987.3,5.20155]
[1617825914276,2.90695,1987.7,1987.2,78.7008]
[1617825914677,2.90695,1987.3,1987.2,78.7008]
[1617825915979,2.90695,1987.3,1986.2,2.2503]
[1617825916179,2.90695,1987.3,1987.1,67.4148]
[1617825916379,2.90695,1987.3,1987.1,70.3311]
[1617825916579,2.90695,1987.3,1987.1,73.23805]
[1617825918981,2.90695,1987.3,1987.1,70.3311]
[1617825923488,2.90695,1987.3,1985.4,31.004]
[1617825923686,77.4047,1987.1,1985.7,81.313]
[1617825924087,5.33145,1987.3,1985.8,6.33]
[1617825924287,56.8196,1986.7,1985.8,6.33]
[1617825924489,59.3665,1986.7,1985.5,6.32]
[1617825924690,59.3665,1986.7,1985.9,6.22]
[1617825924887,59.3665,1986.7,1986.4,2.90695]
[1617825926889,2.90695,1986.5,1986.2,2.90695]
[1617825928292,2.90695,1986.5,1985.3,78.5201]
[1617825928893,56.8196,1986.7,1986.0,2.90695]
[1617825929293,56.8196,1986.7,1986.1,6.15]
[1617825929694,56.8196,1986.7,1986.0,5.08415]
[1617825930294,56.8196,1986.7,1986.1,6.28]
[1617825930898,2.90695,1986.2,1986.1,6.28]
[1617825931298,2.90695,1986.2,1985.8,2.90695]
[1617825931897,2.90695,1986.2,1985.9,6.07]
[1617825932598,2.90695,1986.2,1985.8,2.90695]
[1617825932998,2.90695,1985.9,1985.8,2.90695]
[1617825933400,2.2045,1986.3,1985.8,2.90695]
[1617825935102,2.90695,1985.9,1985.8,2.90695]
[1617825935603,84.0366,1985.4,1984.1,62.1718]
[1617825935804,86.3342,1985.4,1984.1,64.1718]
[1617825936002,2.2976,1985.4,1983.8,30.0]
[1617825936202,84.0451,1984.9,1983.8,30.0]
[1617825936402,86.811,1984.9,1984.2,6.33]
[1617825936803,86.811,1984.9,1983.9,6.3]
[1617825937004,86.811,1984.9,1984.3,6.08]
[1617825937203,2.90695,1984.8,1984.7,2.90695]
[1617825938203,84.7067,1985.4,1984.7,2.90695]
[1617825938406,82.4091,1985.4,1984.7,8.94695]
[1617825939105,82.4091,1985.4,1985.0,2.90695]
[1617825939506,82.4091,1985.4,1985.1,6.05]
[1617825940505,82.4091,1985.4,1985.0,2.90695]
[1617825941107,2.90695,1985.1,1985.0,2.90695]
[1617825944513,82.4091,1985.4,1985.0,2.90695]
[1617825944713,82.4091,1985.4,1985.0,9.20695]
[1617825945113,82.4091,1985.4,1985.3,2.90695]
[1617825945911,30.0,1986.5,1985.3,2.90695]
[1617825946113,59.4001,1986.4,1985.3,5.85915]
[1617825946711,59.4001,1986.4,1985.4,6.22]
[1617825947112,2.90695,1985.5,1985.3,2.9522]
[1617825947818,59.4001,1986.4,1985.3,2.9522]
[1617825948228,59.4001,1986.4,1985.4,6.24]
[1617825948827,30.0,1986.3,1985.4,6.24]
[1617825949619,59.4001,1986.4,1985.4,6.24]
[1617825950317,59.4001,1986.4,1985.3,2.9522]
[1617825951120,59.4001,1986.4,1985.4,2.90695]
[1617825951519,59.4001,1986.4,1985.4,9.10695]
[1617825951721,59.4001,1986.4,1985.4,12.07585]
[1617825951921,59.4001,1986.4,1985.4,5.87585]
[1617825952121,59.4001,1986.4,1985.5,6.32]
[1617825952822,89.4001,1986.4,1985.5,6.32]
[1617825953223,2.90695,1985.6,1985.5,6.32]
[1617825953422,2.90695,1985.6,1985.4,5.87585]
[1617825955126,72.49695,1985.6,1985.4,5.87585]
[1617825955427,69.59,1985.6,1985.4,5.87585]
[1617825957225,72.49695,1985.6,1985.4,5.87585]
[1617825957425,72.49695,1985.6,1984.7,77.829]
[1617825958025,72.49695,1985.6,1984.8,6.26]
[1617825959326,69.59,1985.6,1985.4,2.90695]
[1617825960729,69.59,1985.6,1985.5,6.22]
[1617825961329,72.49695,1985.6,1985.5,9.12695]
[1617825963429,72.49695,1985.6,1985.5,6.22]
[1617825967034,72.49695,1985.6,1985.3,2.90695]
[1617825967433,2.90695,1985.4,1985.3,2.90695]
[1617825968133,69.59,1985.6,1985.3,2.90695]
[1617825969436,2.90695,1985.4,1985.3,2.90695]
[1617825972943,2.90695,1985.4,1983.3,30.0]
[1617825973143,70.7398,1984.9,1983.8,74.9231]
[1617825973347,73.7635,1984.9,1983.8,74.9231]
[1617825973546,73.7635,1984.9,1984.8,2.90695]
[1617825974344,73.7635,1984.9,1983.8,74.9231]
[1617825975145,73.7635,1984.9,1983.9,6.12]
[1617825975554,73.7635,1984.9,1984.5,2.90695]
[1617825975951,73.7635,1984.9,1984.6,6.2]
[1617825976351,73.7635,1984.9,1984.5,2.90695]
[1617825977465,2.90695,1984.6,1984.5,2.90695]
[1617825981157,70.7398,1984.9,1984.5,2.90695]
[1617825981370,70.7398,1984.9,1984.5,11.91505]
[1617825981562,70.7398,1984.9,1984.5,9.0081]
[1617825983565,70.7398,1984.9,1984.7,2.90695]
[1617825985569,2.90695,1984.8,1984.5,2.90695]
[1617825985769,2.90695,1984.8,1983.8,74.9231]
[1617825985969,2.90695,1984.8,1983.6,1.0054]
[1617825986169,74.2876,1984.1,1983.0,80.5513]
[1617825986373,74.2876,1984.1,1983.0,80.5558]
[1617825986671,74.2876,1984.1,1983.0,79.5464]
[1617825986871,74.2876,1984.1,1983.1,8.17]
[1617825987674,77.19455,1984.1,1983.9,2.90695]
[1617825988075,77.19455,1984.1,1984.0,6.28]
[1617825989080,77.18509306,1984.1,1984.0,6.28]
[1617825989293,74.27814306,1984.1,1984.0,6.28]
[1617825991280,2.90695,1984.2,1984.0,6.28]
[1617825991685,2.90695,1984.2,1984.1,2.90695]
[1617825991982,2.90695,1984.2,1984.1,8.98695]
[1617825992180,2.90695,1984.2,1984.1,11.54855]
[1617825992982,71.8643,1984.4,1984.1,11.54855]
[1617825993180,2.0,1985.9,1984.1,11.54855]
[1617825993380,43.5415,1986.0,1984.1,11.54855]
[1617825993608,75.433,1986.0,1985.3,2.90695]
[1617825993809,75.433,1986.0,1985.3,5.42925]
[1617825994224,75.433,1986.0,1985.4,6.22]
[1617825994611,61.8915,1986.0,1985.4,6.22]